fUSD/lending_fUSD_20260418
["ID","MTS","AMOUNT","RATE_DAILY","PERIOD"]
[420707799,1776467433232,-193.89,0.0001032,2]
[420707800,1776467433242,-500.0,0.00010373,2]
[420707801,1776467433252,-500.0,0.00010373,2]
[420707802,1776467433263,-502.84265253,0.00010373,2]
[420707803,1776467433273,-500.0,0.00010373,2]
[420707804,1776467433283,-151.0,0.00010397,2]
[420707805,1776467433292,-151.0,0.00010397,2]
[420707806,1776467433302,-792.99630816,0.000104,2]
[420707807,1776467433312,-354.75861205,0.000104,2]
[420707808,1776467433321,-767.71522078,0.000104,2]
[420707809,1776467433330,-740.38441215,0.000104,2]
[420707810,1776467433339,-674.28316616,0.000104,2]
[420707811,1776467433349,-100.91977481,0.000104,2]
[420707815,1776467438853,-50.08022519,0.000104,2]
[420707816,1776467438862,-416.11259206,0.000104,2]
[420707817,1776467438871,-185.22570373,0.00010439,2]
[420707818,1776467438881,-150.0,0.00010439,2]
[420707819,1776467438890,-150.0,0.00010439,2]
[420707820,1776467438900,-153.81448557,0.00010439,2]
[420707821,1776467438909,-150.0,0.00010439,2]
[420707822,1776467438923,-150.0,0.00010439,2]
[420707823,1776467438933,-150.0,0.00010439,2]
[420707824,1776467438942,-150.0,0.00010439,2]
[420707825,1776467438952,-150.0,0.00010439,2]
[420707826,1776467438963,-260.28896982,0.00010439,2]
[420707827,1776467438972,-489.19696182,0.0001044,2]
[420707828,1776467438985,-293.7966764,0.00010499,30]
[420707829,1776467438995,-539.00539,0.0001059,2]
[420707830,1776467439005,-539.0054,0.0001059,2]
[420707831,1776467439014,-539.0054,0.0001059,2]
[420707832,1776467439024,-539.0054,0.0001059,2]
[420707833,1776467439035,-539.0054,0.0001059,2]
[420707834,1776467439045,-539.0054,0.0001059,2]
[420707835,1776467439054,-5029.45581816,0.00010669,2]
[420707836,1776467439066,-933.14390161,0.00010669,2]
[420707837,1776467439078,-477.10510123,0.00010669,2]
[420707838,1776467439100,-1014.84627868,0.00010669,2]
[420707839,1776467439109,-150.60405658,0.00010673,2]
[420707840,1776467439906,-349.39594342,0.00010673,2]
[420707841,1776467439916,-500.0,0.00010673,2]
[420707842,1776467439926,-500.0,0.00010673,2]
[420707843,1776467439935,-392.08768083,0.00010673,2]
[420707844,1776467439947,-107.91231917,0.00010673,2]
[420707845,1776467439956,-500.0,0.00010673,2]
[420707846,1776467439966,-150.0,0.00010685,2]
[420707847,1776467439976,-2373.3227761,0.000107,2]
[420707848,1776467439987,-479.436717,0.000107,2]
[420707849,1776467440004,-1530.77808329,0.000107,2]
[420707873,1776467440812,-208.05629603,0.00010673,2]
[420707874,1776467440821,-13593.73675021,0.000107,2]
[420707875,1776467440867,-713.67957342,0.000107,2]
[420707876,1776467440920,-1933.47872742,0.000107,2]
[420707877,1776467441135,-1572.14272786,0.000107,2]
[420707878,1776467441189,-2500.0,0.000107,2]
[420707909,1776467443460,-4566.33915549,0.000107,2]
[420707910,1776467443472,-36912.35917351,0.000107,2]
[420707913,1776467443516,-1838.8604776,0.000107,2]
[420707914,1776467443584,-13238.19055137,0.000107,2]
[420707915,1776467443624,-6886.26776497,0.000107,2]
[420707945,1776467446383,-938.40092961,0.000107,2]
[420707946,1776467446438,-8052.44653517,0.000107,2]
[420707948,1776467446651,-354.84366032,0.000107,2]
[420707950,1776467446705,-657.92929977,0.000107,2]
[420707951,1776467446717,-51335.48564866,0.000107,2]
[420707952,1776467446728,-151.0,0.000107,2]
[420707953,1776467446737,-5974.95750274,0.000107,2]
[420707954,1776467446761,-874.04884267,0.000107,2]
[420707955,1776467446772,-61360.83948659,0.000107,2]
[420707956,1776467446783,-74937.95040803,0.000107,2]
[420707957,1776467446868,-391.32725833,0.000107,2]
[420707973,1776467659061,1545.3680131,0.00032876,120]
[420707975,1776467870850,4736.94,0.00032877,120]
[420707989,1776468479637,1734.77,0.0003287,120]
[420707992,1776468612262,3347.72,0.00032877,120]
[420708003,1776468631561,-441.41895824,9.945e-05,2]
[420708004,1776468631571,-250.0,9.945e-05,2]
[420708005,1776468631581,-28.80710085,9.945e-05,2]
[420708006,1776468631597,-1823.61289915,9.945e-05,2]
[420708007,1776468631608,-325.36739026,9.978e-05,2]
[420708008,1776468631618,-1216.88,9.989e-05,2]
[420708009,1776468631628,-300.0,0.00010006,2]
[420708010,1776468631637,-362.0,0.00010006,2]
[420708011,1776468631647,-5723.26,0.00010007,2]
[420708012,1776468631656,-1500.0,0.00010048,2]
[420708013,1776468631666,-1600.0,0.00010108,2]
[420708014,1776468631675,-350.0,0.00010242,2]
[420708015,1776468631685,-2578.41,0.0001043,2]
[420708016,1776468631695,-196.13356156,0.00010497,2]
[420708017,1776468631705,-500.0,0.00010573,2]
[420708018,1776468631715,-381.56324994,0.00010573,2]
[420708019,1776468631725,-500.72366847,0.00010573,2]
[420708020,1776468631735,-500.0,0.00010573,2]
[420708021,1776468631744,-150.0,0.00010586,2]
[420708022,1776468631753,-27222.81741301,0.00010587,2]
[420708023,1776468631763,-151.0,0.00010594,2]
[420708024,1776468631772,-500.0,0.00010596,2]
[420708025,1776468631782,-500.0,0.00010596,2]
[420708027,1776468631792,-412.82964588,0.00010596,2]
[420708028,1776468631801,-500.0,0.00010596,2]
[420708029,1776468631811,-500.0,0.00010596,2]
[420708030,1776468631824,-500.0,0.00010596,2]
[420708031,1776468631834,-539.2057639,0.00010596,2]
[420708033,1776468631843,-500.0,0.00010596,2]
[420708035,1776468631853,-500.0,0.00010596,2]
[420708036,1776468631862,-500.0,0.00010596,2]
[420708037,1776468631871,-500.0,0.00010596,2]
[420708038,1776468631881,-505.42914153,0.00010596,2]
[420708039,1776468631891,-158.14643145,0.00010596,2]
[420708040,1776468631900,-172.70608467,0.00010596,2]
[420708041,1776468631910,-1481.231,0.00010596,2]
[420708042,1776468631919,-250.0,0.00010597,2]
[420708043,1776468631929,-1789.0,0.00010597,5]
[420708045,1776468631938,-115379.0015,0.00010597,2]
[420708047,1776468631948,-116397.04116522,0.00010597,2]
[420708049,1776468631960,-26565.91496124,0.00010597,2]
[420708051,1776468631971,-123362.88891699,0.00010597,2]
[420708053,1776468631984,-87582.0253355,0.00010597,2]
[420708055,1776468631995,-19161.37789446,0.00010597,2]
[420708056,1776468632007,-21469.14864761,0.00010597,2]
[420708057,1776468632018,-428.3869834,0.00010597,2]
[420708058,1776468632030,-693.6130166,0.00010597,2]
[420708059,1776468632042,-7721.88054138,0.00010597,2]
[420708060,1776468632057,-356.44950306,0.00010597,2]
[420708067,1776468637854,-1980.58075856,0.00010597,2]
[420708068,1776468637866,-559.53366536,0.00010597,2]
[420708069,1776468637912,-6657.42045116,0.00010597,2]
[420708070,1776468637969,-800.71742749,0.00010597,2]
[420708071,1776468637982,-591.6252005,0.00010597,2]
[420708072,1776468638137,-76999.99999989,0.00010597,2]
[420708073,1776468638155,-3852.56390105,0.00010597,2]
[420708074,1776468638177,-297.28257251,0.00010597,2]
[420708075,1776468638190,-879.54028418,0.00010597,2]
[420708076,1776468638203,-44571.86321231,0.00010597,2]
[420708077,1776468638216,-9399.4086997,0.00010597,2]
[420708078,1776468638229,-1058.9566945,0.00010597,2]
[420708079,1776468638242,-461.21203,0.00010597,2]
[420708080,1776468638255,-736.12857669,0.00010597,2]
[420708085,1776468640367,-2819.22291,0.00010597,2]
[420708086,1776468640384,-11254.23974103,0.00010597,2]
[420708087,1776468640398,-1109.5857,0.00010597,2]
[420708088,1776468640410,-2414.10485394,0.00010597,2]
[420708089,1776468640436,-154018.0,0.00010597,2]
[420708090,1776468640462,-9081.38155345,0.00010597,2]
[420708091,1776468640474,-2207.26,0.00010597,2]
[420708118,1776468647833,-1151.53904957,0.00010597,2]
[420708120,1776468647849,-717.72,0.00010597,2]
[420708122,1776468647867,-77099.99999998,0.00010597,2]
[420708123,1776468647878,-1751.70942853,0.00010597,2]
[420708124,1776468647894,-45033.0662582,0.00010597,2]
[420708134,1776468648010,-422.00253848,0.00010597,2]
[420708136,1776468648022,-515.32199994,0.00010597,2]
[420708138,1776468648035,-469.78000001,0.00010597,2]
[420708144,1776468648124,-983.50729811,0.00010597,2]
[420708690,1776468708016,743.0,0.0003287,120]
[420708692,1776468823710,500.0,0.0003287,120]
[420708693,1776468829628,4999.0,0.0003287,120]
[420708694,1776468849246,10000.0,7.221e-05,2]
[420708696,1776468896070,5000.01,7.221e-05,2]
[420708697,1776468896095,0.01,7.221e-05,2]
[420708698,1776468896123,1499.98,7.221e-05,2]
[420708699,1776468971147,174.0,0.00028767,120]
[420708702,1776469290493,1002.36427873,0.00032877,120]
[420708707,1776469617451,5000.0,0.0003287,120]
[420708708,1776469625208,152.91,0.00030411,120]
[420708714,1776469747132,-166.56,7.585e-05,2]
[420708715,1776469747155,-249.0,7.585e-05,2]
[420708720,1776469831832,-250.0,8.343e-05,2]
[420708721,1776469831842,-193.0,8.343e-05,2]
[420708722,1776469831852,-250.0,8.343e-05,2]
[420708723,1776469831861,-500.0,9.537e-05,2]
[420708724,1776469831871,-228.58,9.651e-05,2]
[420708725,1776469831881,-2000.0,9.748e-05,2]
[420708726,1776469831891,-200.0,9.78e-05,2]
[420708727,1776469831900,-285.50676789,9.946e-05,2]
[420708728,1776469831911,-1200.0,9.999e-05,2]
[420708729,1776469831921,-201.95343748,0.0001,2]
[420708730,1776469831931,-201.95343748,0.0001,2]
[420708731,1776469831941,-201.95343748,0.0001,2]
[420708732,1776469831951,-198.58,0.00010029,2]
[420708733,1776469831961,-150.0,0.00010157,2]
[420708734,1776469831970,-300.0,0.00010157,2]
[420708735,1776469831980,-500.0,0.00010158,2]
[420708736,1776469831990,-151.0,0.00010158,2]
[420708738,1776469831999,-174.61919141,0.00010158,2]
[420708740,1776469832009,-227.34163157,0.00010158,2]
[420708741,1776469832018,-235.75327194,0.00010158,2]
[420708742,1776469832029,-244.476143,0.00010158,2]
[420708743,1776469832041,-253.52176029,0.00010158,2]
[420708744,1776469832052,-262.90206542,0.00010158,2]
[420708745,1776469832063,-272.62944185,0.00010158,2]
[420708746,1776469832073,-282.71673119,0.00010158,2]
[420708747,1776469832082,-293.17725025,0.00010158,2]
[420708748,1776469832091,-304.02480851,0.00010158,2]
[420708749,1776469832101,-315.27372642,0.00010158,2]
[420708750,1776469832110,-326.9388543,0.00010158,2]
[420708751,1776469832120,-328.4169786,0.00010158,2]
[420708752,1776469832135,-10.61861331,0.00010158,2]
[420708753,1776469832144,-500.0,0.00010213,2]
[420708754,1776469832154,-151.0,0.00010213,2]
[420708755,1776469832163,-500.0,0.00010268,2]
[420708756,1776469832173,-151.0,0.00010268,2]
[420708758,1776469832182,-231.16328186,0.000103,2]
[420708760,1776469832192,-360.93486162,0.000103,2]
[420708762,1776469832202,-389.44903682,0.000103,2]
[420708765,1776469832212,-151.0,0.00010323,2]
[420708768,1776469832221,-287.00281167,0.000104,2]
[420708771,1776469832231,-503.51605394,0.000104,2]
[420708774,1776469832240,-547.84757548,0.000104,2]
[420708776,1776469832250,-564.0668348,0.000104,2]
[420708778,1776469832260,-168.11448132,0.00010432,2]
[420708780,1776469832269,-671.3784,0.00010466,2]
[420708781,1776469832278,-2367.0,0.00010466,2]
[420708782,1776469832288,-500.0,0.00010473,2]
[420708783,1776469832298,-500.0,0.00010473,2]
[420708784,1776469832307,-500.0,0.00010473,2]
[420708785,1776469832316,-161.19100432,0.00010473,2]
[420708786,1776469832327,-500.0,0.00010473,2]
[420708787,1776469832337,-500.0,0.00010473,2]
[420708788,1776469832347,-501.3372433,0.00010473,2]
[420708789,1776469832356,-500.0,0.00010473,2]
[420708790,1776469832366,-500.0,0.00010481,2]
[420708791,1776469832376,-200.0,0.00010481,2]
[420708792,1776469832386,-151.0,0.00010481,2]
[420708793,1776469832396,-1377.42282659,0.00010481,2]
[420708794,1776469832407,-500.0,0.00010481,2]
[420708795,1776469832417,-151.0,0.00010481,2]
[420708796,1776469832427,-151.0,0.00010481,2]
[420708797,1776469832437,-500.0,0.00010481,2]
[420708798,1776469832446,-151.0,0.00010481,2]
[420708799,1776469832456,-151.0,0.00010481,2]
[420708800,1776469832466,-151.0,0.00010481,2]
[420708801,1776469832476,-151.0,0.00010481,2]
[420708802,1776469832485,-151.0,0.00010481,2]
[420708803,1776469832495,-151.0,0.00010481,2]
[420708804,1776469832506,-151.0,0.00010481,2]
[420708805,1776469832516,-500.0,0.00010481,2]
[420708806,1776469832526,-151.0,0.00010481,2]
[420708807,1776469832536,-500.0,0.00010481,2]
[420708808,1776469832546,-151.0,0.00010481,2]
[420708809,1776469832556,-500.0,0.00010481,2]
[420708810,1776469832565,-151.0,0.00010481,2]
[420708811,1776469832575,-279.9045709,0.00010481,2]
[420708812,1776469832585,-500.0,0.00010481,2]
[420708813,1776469832594,-500.0,0.00010481,2]
[420708814,1776469832604,-151.0,0.00010481,2]
[420708815,1776469832614,-500.0,0.00010481,2]
[420708816,1776469832624,-151.0,0.00010481,2]
[420708817,1776469832633,-500.0,0.00010481,2]
[420708818,1776469832643,-151.0,0.00010481,2]
[420708819,1776469832652,-500.0,0.00010481,2]
[420708820,1776469832662,-151.0,0.00010481,2]
[420708821,1776469832671,-500.0,0.00010481,2]
[420708822,1776469832681,-151.0,0.00010481,2]
[420708823,1776469832691,-500.0,0.00010481,2]
[420708824,1776469832701,-151.0,0.00010481,2]
[420708825,1776469832710,-500.0,0.00010481,2]
[420708826,1776469832719,-151.0,0.00010481,2]
[420708827,1776469832729,-500.0,0.00010481,2]
[420708828,1776469832739,-151.0,0.00010481,2]
[420708829,1776469832748,-201.93286099,0.00010481,2]
[420708830,1776469832758,-151.0,0.00010484,2]
[420708831,1776469832768,-151.0,0.00010484,2]
[420708832,1776469832778,-648.73496734,0.00010486,2]
[420708833,1776469832788,-165.41,0.00010486,2]
[420708834,1776469832798,-2755.631,0.00010486,2]
[420708835,1776469832808,-55878.19737032,0.00010487,2]
[420708836,1776469832820,-7560.38101508,0.00010487,2]
[420708837,1776469832832,-3221.86100656,0.00010487,2]
[420708838,1776469832844,-39939.88205488,0.00010487,2]
[420708839,1776469832856,-5211.49292933,0.00010487,2]
[420708840,1776469832867,-931.70372915,0.00010487,2]
[420708841,1776469832890,-577.69225892,0.00010487,2]
[420708842,1776469832901,-20669.14520295,0.00010487,2]
[420708843,1776469832913,-45439.22363929,0.00010487,2]
[420708866,1776469841136,-770.45357976,0.00010487,2]
[420708867,1776469841158,-322534.53971376,0.00010487,2]
[420708868,1776469841168,-203.50900944,0.00010487,2]
[420708869,1776469841176,-521.57565016,0.00010495,2]
[420708870,1776469841186,-250.0,0.00010495,2]
[420708871,1776469841195,-1500000.0,0.00010497,2]
[420708872,1776469841204,-1717.0,0.00010532,5]
[420708873,1776469841213,-350.0,0.00010562,2]
[420708874,1776469841223,-641.28003,0.0001059,2]
[420708875,1776469841232,-641.28003,0.0001059,2]
[420708876,1776469841241,-518.06,0.00010591,2]
[420708877,1776469841251,-151.0,0.00010594,2]
[420708878,1776469841260,-151.0,0.00010594,2]
[420708879,1776469841269,-155.0,0.00010596,2]
[420708880,1776469841278,-9439.1511158,0.00010597,2]
[420708881,1776469841287,-268739.42337653,0.00010597,2]
[420708882,1776469841298,-922.74431981,0.00010597,2]
[420708883,1776469841309,-733.3777153,0.00010597,2]
[420708884,1776469841335,-77007.00000002,0.00010597,2]
[420708913,1776469844583,-555.0,0.00010597,2]
[420708914,1776469844637,-1080.15387967,0.00010597,2]
[420708933,1776469846245,-4638.85904344,0.00010597,2]
[420708934,1776469846257,-5552.89999963,0.00010597,2]
[420708935,1776469846268,-10355.93768118,0.00010597,2]
[420708936,1776469846279,-3115.94184366,0.00010597,2]
[420708957,1776470050339,234.0,0.00025,120]
[420708958,1776470060638,500.0,0.0003287,120]
[420708959,1776470181764,153.62,0.0003287,120]
[420708960,1776470182982,274.37,0.0003287,120]
[420708962,1776470286977,550.0,0.00024822,120]
[420708963,1776470288698,550.0,0.00024822,120]
[420708964,1776470288831,436.0,0.00024822,120]
[420708965,1776470374264,500.0,0.0003287,120]
[420708971,1776470532340,2000.0,0.00032876,120]
[420708972,1776470539818,2000.0,0.00032876,120]
[420708974,1776470548059,2000.0,0.00032876,120]
[420708976,1776470554419,2000.0,0.00032876,120]
[420708977,1776470565158,2000.0,0.00032876,120]
[420708978,1776470577350,2000.0,0.00032876,120]
[420708980,1776470604737,500.0,0.00026822,120]
[420708981,1776470605090,500.0,0.00030775,120]
[420708983,1776470637006,1186.19,0.00032876,120]
[420708984,1776470643704,2000.0,0.00032876,120]
[420708985,1776470649757,2000.0,0.00032876,120]
[420708986,1776470657446,2000.0,0.00032876,120]
[420708987,1776470664226,2000.0,0.00032876,120]
[420708988,1776470671247,2000.0,0.00032876,120]
[420708989,1776470671619,10000.0,0.00032876,120]
[420708990,1776470685067,2000.0,0.00032876,120]
[420708991,1776470693021,2000.0,0.00032876,120]
[420708992,1776470700521,2000.0,0.00032876,120]
[420708993,1776470706435,2000.0,0.00032876,120]
[420708994,1776470731220,2000.0,0.00032876,120]
[420708996,1776470732539,2000.0,0.00032876,120]
[420708997,1776470738036,2000.0,0.00032876,120]
[420708998,1776470746783,2000.0,0.00032876,120]
[420709001,1776470793128,-150.0,9.345e-05,2]
[420709002,1776470793151,-61.00181296,9.412e-05,2]
[420709003,1776470830074,200.0,0.000249,120]
[420709004,1776470830889,200.0,0.000249,120]
[420709005,1776470831725,176.0,0.000249,120]
[420709006,1776470844283,350.0,0.000249,120]
[420709008,1776470844808,350.0,0.000249,120]
[420709009,1776470845618,240.0,0.000249,120]
[420709013,1776470940614,2000.0,0.00032876,120]
[420709014,1776470952264,2000.0,0.00032876,120]
[420709015,1776470965756,2000.0,0.00032876,120]
[420709017,1776470974222,2000.0,0.00032876,120]
[420709018,1776470987922,2000.0,0.00032876,120]
[420709022,1776471032172,-605.6100191,9.412e-05,2]
[420709023,1776471032185,-805.47043148,9.412e-05,2]
[420709024,1776471032197,-88.91954942,9.412e-05,2]
[420709025,1776471032208,-396.49895058,9.412e-05,2]
[420709026,1776471032225,-1142.49923646,9.412e-05,2]
[420709027,1776471032236,-647.41,9.465e-05,2]
[420709028,1776471032246,-250.0,9.482e-05,2]
[420709029,1776471032256,-150.0,9.5e-05,15]
[420709030,1776471032270,-260.6,9.501e-05,2]
[420709031,1776471032280,-250.0,9.576e-05,2]
[420709032,1776471032290,-164.06,9.665e-05,2]
[420709033,1776471032299,-688.34748338,9.75e-05,2]
[420709034,1776471032312,-511.65251662,9.75e-05,2]
[420709035,1776471032323,-58.46916203,9.75e-05,2]
[420709036,1776471032340,-1141.53083797,9.75e-05,2]
[420709037,1776471032350,-290.0,9.75e-05,2]
[420709038,1776471032360,-300.0,9.75e-05,2]
[420709039,1776471032370,-300.0,9.751e-05,2]
[420709040,1776471032380,-2430.43556243,9.752e-05,2]
[420709041,1776471032392,-1606.12387378,9.752e-05,2]
[420709042,1776471032404,-525.79675041,9.752e-05,2]
[420709043,1776471032420,-958.35718436,9.752e-05,2]
[420709044,1776471032432,-1766.46662902,9.752e-05,2]
[420709045,1776471032442,-152.71654951,0.000102,2]
[420709046,1776471032451,-158.40230184,0.000102,2]
[420709047,1776471032461,-157.12613015,0.000102,2]
[420709048,1776471032471,-750.0,0.000102,2]
[420709049,1776471032480,-500.0,0.00010273,2]
[420709050,1776471032490,-500.0,0.00010273,2]
[420709051,1776471032500,-150.0,0.00010293,2]
[420709052,1776471032509,-174.61919141,0.00010294,2]
[420709053,1776471032519,-227.34163157,0.00010294,2]
[420709054,1776471032529,-235.75327194,0.00010294,2]
[420709055,1776471032539,-244.476143,0.00010294,2]
[420709056,1776471032549,-253.52176029,0.00010294,2]
[420709057,1776471032558,-262.90206542,0.00010294,2]
[420709058,1776471032568,-272.62944185,0.00010294,2]
[420709059,1776471032577,-282.71673119,0.00010294,2]
[420709060,1776471032587,-156.88111554,0.00010294,2]
[420709075,1776471033477,256.0,0.00031307,120]
[420709076,1776471037811,59302.03193701,0.00032876,120]
[420709083,1776471038173,-136.29613471,0.00010294,2]
[420709084,1776471038183,-375.01648187,0.00010294,2]
[420709085,1776471038192,-1488.68738342,0.00010299,2]
[420709087,1776471038204,-715.81761658,0.00010299,2]
[420709088,1776471038213,-165.411,0.00010299,2]
[420709089,1776471038223,-164.12570421,0.00010299,2]
[420709090,1776471038232,-48.64567921,0.00010299,2]
[420709091,1776471038332,-141.89998861,0.00010299,2]
[420709092,1776471038343,-259.03978921,0.00010299,2]
[420709093,1776471038356,-240.96021079,0.00010299,2]
[420709094,1776471038365,-359.75524098,0.00010299,2]
[420709095,1776471038375,-500.0,0.00010299,2]
[420709096,1776471038384,-5.15053793,0.00010299,2]
[420709097,1776471038395,-494.84946207,0.00010299,2]
[420709098,1776471038404,-500.0,0.00010299,2]
[420709099,1776471038413,-500.0,0.00010299,2]
[420709100,1776471038423,-500.0,0.00010299,2]
[420709101,1776471038432,-500.0,0.00010299,2]
[420709102,1776471038442,-500.0,0.00010299,2]
[420709103,1776471038452,-500.0,0.00010299,2]
[420709104,1776471038461,-78.02063189,0.00010299,2]
[420709105,1776471038474,-421.97936811,0.00010299,2]
[420709106,1776471038483,-531.42507406,0.00010299,2]
[420709107,1776471038492,-500.0,0.00010299,2]
[420709108,1776471038501,-500.0,0.00010299,2]
[420709109,1776471038510,-140.28525872,0.000103,2]
[420709110,1776471038522,-564.0886184,0.000103,2]
[420709111,1776471038539,-306.53530101,0.000103,2]
[420709112,1776471038550,-1020.29583807,0.000103,2]
[420709113,1776471038562,-16092.3183417,0.000103,2]
[420709114,1776471038572,-526.50344134,0.000103,2]
[420709151,1776471041344,-455.28347007,0.000102,2]
[420709152,1776471041357,-474.24616922,0.000102,2]
[420709153,1776471041400,-369.0,0.000102,2]
[420709154,1776471041414,-453.31024616,0.000102,2]
[420709155,1776471041429,-1154.89422722,0.000102,2]
[420709156,1776471041507,-1287798.49843785,0.000102,2]
[420709157,1776471041938,-168390.74380737,0.000102,2]
[420709175,1776471044551,-23.44464589,0.000102,2]
[420709199,1776471046487,-1884.92032176,0.000102,2]
[420709200,1776471046547,-448.87113101,0.000102,2]
[420709201,1776471046559,-1542.78033067,0.000102,2]
[420709202,1776471046920,-1891.58382432,0.000102,2]
[420709203,1776471047034,-3658.00000427,0.000102,2]
[420709204,1776471047046,-2701.44760208,0.000102,2]
[420709205,1776471047058,-8315.46359074,0.000102,2]
[420709206,1776471047198,-9150.72976221,0.000102,2]
[420709207,1776471047210,-11286.78242916,0.000102,2]
[420709208,1776471047221,-11496.73116951,0.000103,2]
[420709214,1776471212043,500.0,0.00025291,120]
[420709215,1776471212549,500.0,0.00030195,120]
[420709218,1776471256716,10000.0,0.00032877,120]
[420709220,1776471273312,10000.0,0.00032877,120]
[420709221,1776471288703,10000.0,0.00032877,120]
[420709222,1776471303910,10000.0,0.00032877,120]
[420709223,1776471319133,10000.0,0.00032877,120]
[420709226,1776471346342,1894.0,0.00032877,120]
[420709228,1776471406894,528885.53483255,0.0003287,120]
[420709231,1776471989310,8888.0,0.00032877,120]
[420709232,1776472004414,8888.0,0.00032877,120]
[420709233,1776472044076,8888.0,0.00032877,120]
[420709235,1776472108301,3614.3342916,0.000328,120]
[420709238,1776472216560,959.3,0.00032877,120]
[420709240,1776472232307,-831.64957871,9.238e-05,2]
[420709241,1776472232355,-1168.35042129,9.238e-05,2]
[420709242,1776472232365,-95.17490607,9.307e-05,2]
[420709243,1776472232377,-588.54509393,9.307e-05,2]
[420709244,1776472232387,-135.20490107,9.344e-05,2]
[420709245,1776472232411,-64.79509893,9.344e-05,2]
[420709246,1776472232420,-631.40792309,9.352e-05,2]
[420709247,1776472232432,-420.98207691,9.352e-05,2]
[420709248,1776472232442,-278.51275841,9.564e-05,2]
[420709249,1776472232454,-118.2398419,9.564e-05,2]
[420709250,1776472232463,-1200.0,9.966e-05,2]
[420709251,1776472232473,-5213.95951194,9.967e-05,2]
[420709252,1776472232483,-300.0,9.999e-05,2]
[420709253,1776472232493,-2306.22403014,0.0001,2]
[420709254,1776472232502,-2000.0,0.0001,2]
[420709255,1776472232512,-150.0,0.0001006,2]
[420709256,1776472232521,-82188.81905984,0.00010061,2]
[420709257,1776472232545,-550.23948953,0.00010061,2]
[420709262,1776472232855,-2967.46145777,0.00010061,2]
[420709263,1776472232901,-11104.561896,0.00010061,2]
[420709264,1776472232913,-18595.21556619,0.00010061,2]
[420709265,1776472233049,-472.0526679,0.00010061,2]
[420709273,1776472238580,-452.24224321,0.00010051,2]
[420709274,1776472238589,-855.71810872,0.00010061,2]
[420709275,1776472238602,-8794.02795487,0.00010061,2]
[420709276,1776472238613,-1260.0,0.00010061,2]
[420709277,1776472238626,-956.485885,0.00010061,2]
[420709278,1776472238688,-898.06061579,0.00010061,2]
[420709279,1776472238700,-1188.74622491,0.00010061,2]
[420709280,1776472238747,-670.48004675,0.00010061,2]
[420709281,1776472238759,-600.0,0.00010061,2]
[420709282,1776472238913,-1041.30749209,0.00010061,2]
[420709283,1776472238925,-1583.41443103,0.00010061,2]
[420709284,1776472238968,-1881.50588421,0.00010061,2]
[420709285,1776472238979,-32906.90536836,0.00010061,2]
[420709286,1776472238991,-1019.324999,0.00010061,2]
[420709291,1776472240787,-1330465.67285204,0.00010061,2]
[420709292,1776472240797,-623.77421047,0.00010067,2]
[420709293,1776472240808,-350.0,0.00010084,2]
[420709294,1776472240819,-1016.65824813,0.000101,2]
[420709295,1776472240828,-2490.5953589,0.000101,2]
[420709296,1776472240838,-2209.34017544,0.000101,2]
[420709297,1776472240848,-2447.36439312,0.000101,2]
[420709298,1776472240858,-2685.3886109,0.000101,2]
[420709299,1776472240868,-1501.53764908,0.00010103,2]
[420709300,1776472240877,-500.0,0.00010106,2]
[420709301,1776472240887,-583.78023302,0.00010106,2]
[420709302,1776472240897,-151.0,0.00010155,2]
[420709303,1776472240908,-174.61919141,0.00010155,2]
[420709304,1776472240918,-2320.08,0.00010161,2]
[420709305,1776472240928,-176.008,0.00010161,2]
[420709306,1776472240938,-299.99,0.00010161,2]
[420709307,1776472240948,-4999.99,0.00010161,2]